[Event "76th Montenegro Championship 2024"]
[Site "Podgorica"]
[Date "2024.02.13"]
[Round "9.14"]
[White "Vujosevic, Vladimir"]
[Black "Grbovic, Dino"]
[Result "1-0"]
[ECO "C00"]
[WhiteElo "2335"]
[BlackElo "1946"]
[Annotator "TA"]
[PlyCount "65"]
[EventDate "2024.02.06"]
[EventType "swiss"]
[EventCountry "MNE"]
[SourceTitle "playchess.com"]
[Source "ChessBase"]
[SourceQuality "1"]
[TimeControl "40/5400+30:1800+30"]

{[%evp 15,65,14,10,0,0,-12,0,0,0,6,16,5,22,26,29,20,27,0,0,10,0,0,0,6,0,1,267,259,293,310,535,524,503,510,506,494,470,357,488,439,654,548,795,466,952,948,946,945,940,931,945,926]} 1. e4 {[%emt 0:00:08]} e5 {[%emt 0:00:13]} 2. Nf3 {[%emt 0:00:32]} Nc6 {[%emt 0:00:08]} 3. Bb5 {[%emt 0:00:24]} Nf6 {[%emt 0:00:06]} 4. d3 {[%emt 0:01:33]} Bc5 {[%emt 0:00:27]} 5. c3 {[%emt 0:00:44]} d5 {[%emt 0:01:10]} 6. Nbd2 {[%emt 0:03:31]} O-O {[%emt 0:06:46]} 7. O-O {[%emt 0:01:28]} dxe4 {[%emt 0:02:46]} 8. dxe4 {[%emt 0:00:14]} Qe7 {[%emt 0:05:43]} 9. h3 {[%emt 0:06:03]} Nb8 {[%emt 0:07:33]} 10. Nh2 {[%emt 0:07:03]} c6 {[%emt 0:05:06]} 11. Be2 {[%emt 0:03:07] The position is equal.} Rd8 {[%emt 0:06:44] [#] And now ...Nxe4 would win.} 12. Qc2 {[%emt 0:01:30]} Nbd7 {[%emt 0:03:22]} 13. b4 {[%emt 0:01:26][%cal Bb2b4,Bb4b5][%mdl 32]} Bd6 {[%emt 0:04:52]} 14. Nc4 {[%emt 0:03:48]} Bc7 {[%emt 0:00:37]} 15. a4 {[%emt 0:01:11]} Nf8 {[%emt 0:05:49]} 16. Ba3 {[%emt 0:02:19]} Ng6 {[%emt 0:06:19]} 17. b5 {[%emt 0:00:54]} Qe8 {[%emt 0:01:08]} 18. Rfb1 {[%emt 0:00:59]} Nf4 {[%emt 0:03:27]} 19. Bf1 {[%emt 1:03:06]} Be6 {[%emt 0:03:22]} 20. Nf3 {[%emt 0:00:00]} Nxe4 $2 {[%emt 0:07:46][%mdl 8192] [#] This move loses the game for Black.} 21. Qxe4 $18 {[%emt 0:00:00]} f5 {[%emt 0:03:18][%cal Bf7f5,Bf5f4][%mdl 32]} 22. Qe3 {[%emt 0:00:00]} Nxh3+ $2 {[%emt 0:07:43]} (22... e4 {keeps fighting.}) 23. gxh3 {[%emt 0:00:00]} f4 {[%emt 0:04:50]} 24. Qe2 {[%emt 0:00:00]} Qg6+ {[%emt 0:01:49]} 25. Kh1 {[%emt 0:00:00]} e4 {[%emt 0:05:45][%cal Be5e4,Be4d3,Bd3e2][%mdl 32]} 26. Nfd2 {[%emt 0:00:00]} Rd3 {[%emt 0:03:52]} 27. f3 {[%emt 0:00:00] White is clearly winning.} Re8 {[%emt 0:02:38]} (27... Bxc4 $142 28. Qxe4 (28. Nxc4 Rxf3 29. Bg2 Rg3 $18) 28... Rxd2 29. Bxc4+ (29. Qxc4+ Kh8 $11) 29... Kh8 30. Qxg6 hxg6 31. bxc6 bxc6) 28. Qg2 {[%emt 0:00:00]} (28. fxe4 Red8 29. bxc6 (29. Qxd3 Rxd3 30. Bxd3 Bxh3 $17) 29... Bxh3 $18) 28... Qh5 {[%emt 0:00:30][%cal Re4f3]} 29. Bxd3 {[%emt 0:00:00]} (29. fxe4 $2 {loses.} Rxh3+ (29... Qxh3+ $2 30. Qxh3 Rxh3+ 31. Bxh3 $18) 30. Kg1 Rg3 (30... Rxc3 31. Qh2 $16) 31. bxc6 Rxg2+ 32. Bxg2 Bxc4 (32... bxc6 $2 33. Rb7 $19) 33. Rxb7 Qe2 $19 (33... f3 $2 34. Nxf3 Bf4 35. Bc1 $19)) 29... Bxh3 {[%emt 0:00:38]} (29... exf3 $142 30. Qh2 (30. Nxf3 Bxh3 31. Qf2 Bf1+ 32. Kg1 Bxd3 $18) (30. Qxf3 Bd5 $11) 30... Bd5) 30. Qh2 {[%emt 0:00:00]} exd3 {[%emt 0:00:07]} 31. Re1 {[%emt 0:00:00]} Re2 {[%emt 0:00:52]} 32. Rxe2 {[%emt 0:00:00]} dxe2 {[%emt 0:00:03]} 33. Re1 {[%emt 0:00:00] Weighted Error Value: White=0.41/Black=0.64.  Loses game:     	---       	Black=1      Mistake:       	---       	Black=3      Inaccurate:     	---       	Black=2      OK:         	White=10    	Black=8      Best:        	White=2     	Black=1} 1-0

[Event "76th Montenegro Championship 2024"]
[Site "Podgorica"]
[Date "2024.02.13"]
[Round "9.15"]
[White "Abramovic, Dragoljub"]
[Black "Scekic, Veljko"]
[Result "0-1"]
[ECO "D00"]
[WhiteElo "2018"]
[BlackElo "2206"]
[Annotator "RC"]
[PlyCount "176"]
[EventDate "2024.02.06"]
[EventType "swiss"]
[EventCountry "MNE"]
[SourceTitle "playchess.com"]
[Source "ChessBase"]
[SourceQuality "1"]
[TimeControl "40/5400+30:1800+30"]

1. d4 {[%emt 0:11:56]} d5 {[%emt 0:00:04]} 2. Bf4 {[%emt 0:00:08]} c5 {[%emt 0:00:22]} 3. e3 {[%emt 0:00:10]} Nc6 {[%emt 0:00:06]} 4. Nc3 {[%emt 0:00:40]} a6 {[%emt 0:00:14]} 5. Nf3 {[%emt 0:00:25]} e6 {[%emt 0:01:07]} 6. Be2 {[%emt 0:00:25]} Bd6 {[%emt 0:00:35]} 7. Bxd6 {[%emt 0:01:07]} Qxd6 {[%emt 0:00:06]} 8. O-O {[%emt 0:04:43]} Nf6 {[%emt 0:00:10]} 9. Na4 {[%emt 0:05:37]} c4 {[%emt 0:07:31]} 10. Nb6 {[%emt 0:03:37]} Rb8 {[%emt 0:01:16]} 11. c3 {[%emt 0:00:40]} Nd7 {[%emt 0:01:05]} 12. Nxd7 {[%emt 0:00:21]} Bxd7 {[%emt 0:00:10]} 13. Nd2 {[%emt 0:00:12]} O-O {[%emt 0:01:39]} 14. e4 {[%emt 0:00:32]} b5 {[%emt 0:00:36]} 15. e5 {[%emt 0:01:54]} Qe7 {[%emt 0:01:42]} 16. a3 {[%emt 0:00:09]} a5 {[%emt 0:00:09]} 17. f4 {[%emt 0:00:15]} b4 {[%emt 0:00:07]} 18. axb4 {[%emt 0:00:04]} axb4 {[%emt 0:00:04]} 19. Bf3 {[%emt 0:00:55]} bxc3 {[%emt 0:04:00]} 20. bxc3 {[%emt 0:00:03]} Rb2 {[%emt 0:00:07]} 21. Qc1 {[%emt 0:03:48]} Rfb8 {[%emt 0:00:50]} 22. Bd1 {[%emt 0:00:39]} Qd8 {[%emt 0:02:36]} 23. Bc2 {[%emt 0:02:22]} g6 {[%emt 1:17:24]} 24. Ba4 {[%emt 0:07:22]} Ne7 {[%emt 0:00:00]} 25. Bc2 {[%emt 0:00:24]} Nc6 {[%emt 0:00:00]} 26. Ba4 {[%emt 0:00:13]} Ne7 {[%emt 0:00:00]} 27. Bc2 {[%emt 0:00:06]} Kg7 {[%emt 0:00:00]} 28. Rf3 {[%emt 0:00:54]} h6 {[%emt 0:00:00]} 29. Nf1 {[%emt 0:06:11]} Qb6 {[%emt 0:00:00]} 30. Rf2 {[%emt 0:00:23]} Nf5 {[%emt 0:00:00]} 31. Bxf5 {[%emt 0:01:01]} Rxf2 {[%emt 0:00:00]} 32. Kxf2 {[%emt 0:00:03]} exf5 {[%emt 0:00:00]} 33. Ne3 {[%emt 0:00:30]} Be6 {[%emt 0:00:00]} 34. Ra2 {[%emt 0:02:37]} Qd8 {[%emt 0:00:00]} 35. g3 {[%emt 0:01:09]} Rb3 {[%emt 0:00:00]} 36. Rc2 {[%emt 0:03:36]} Qb6 {[%emt 0:00:00]} 37. Qd2 {[%emt 0:02:54]} Qa5 {[%emt 0:00:00]} 38. Nd1 {[%emt 0:01:44]} Rb1 {[%emt 0:00:00]} 39. Ke2 {[%emt 0:07:34]} Ra1 {[%emt 0:00:00]} 40. Rc1 {[%emt 0:00:00]} Ra2 {[%emt 0:00:00]} 41. Rc2 {[%emt 0:06:16]} Ra3 {[%emt 0:00:00]} 42. h3 {[%emt 0:03:12]} Bd7 {[%emt 0:00:00]} 43. Nb2 {[%emt 0:07:51]} Qb6 {[%emt 0:01:30]} 44. Qc1 {[%emt 0:04:47]} Qb3 {[%emt 0:01:11]} 45. Kd2 {[%emt 0:00:35]} h5 {[%emt 0:05:18]} 46. h4 {[%emt 0:01:23]} Kh7 {[%emt 0:00:17]} 47. Nd1 {[%emt 0:03:54]} Ba4 {[%emt 0:03:12]} 48. Ne3 {[%emt 0:01:27]} Ra2 {[%emt 0:01:26]} 49. Rxa2 {[%emt 0:01:49]} Qxa2+ {[%emt 0:00:05]} 50. Ke1 {[%emt 0:00:26]} Qh2 {[%emt 0:06:59]} 51. Nf1 {[%emt 0:00:27]} Qg2 {[%emt 0:00:14]} 52. Qd2 {[%emt 0:01:02]} Qf3 {[%emt 0:03:26]} 53. Qe3 {[%emt 0:01:31]} Qd1+ {[%emt 0:00:24]} 54. Kf2 {[%emt 0:00:15]} Qc2+ {[%emt 0:06:49]} 55. Qd2 {[%emt 0:01:21]} Qb1 {[%emt 0:00:57]} 56. Ne3 {[%emt 0:02:25]} Bc6 {[%emt 0:01:12]} 57. Qc2 {[%emt 0:00:58]} Qb5 {[%emt 0:02:33]} 58. Kf3 {[%emt 0:03:45]} Qa5 {[%emt 0:00:47]} 59. Qb2 {[%emt 0:01:22]} Bd7 {[%emt 0:02:38]} 60. Ke2 {[%emt 0:01:25]} Be6 {[%emt 0:00:20]} 61. Nc2 {[%emt 0:00:26]} Qa4 {[%emt 0:01:07]} 62. Kd2 {[%emt 0:00:29]} Kg7 {[%emt 0:00:31]} 63. Qb4 {[%emt 0:00:38]} Qa2 {[%emt 0:00:26]} 64. Kc1 {[%emt 0:00:14]} Qa8 {[%emt 0:00:42]} 65. Kb2 {[%emt 0:00:13]} Qa6 {[%emt 0:02:09]} 66. Qa3 {[%emt 0:00:19]} Qc8 {[%emt 0:02:20]} 67. Qa7 {[%emt 0:00:21]} Qd8 {[%emt 0:00:30]} 68. Nb4 {[%emt 0:00:29]} Qc8 {[%emt 0:00:54]} 69. Ka3 {[%emt 0:00:59]} Qd8 {[%emt 0:02:30]} 70. Qa6 {[%emt 0:02:41]} Qc7 {[%emt 0:00:12]} 71. Qb5 {[%emt 0:01:44]} Qa7+ {[%emt 0:00:16]} 72. Kb2 {[%emt 0:01:12]} Qa8 {[%emt 0:00:22]} 73. Qc6 {[%emt 0:02:15]} Qb8 {[%emt 0:01:27]} 74. Ka3 {[%emt 0:01:30]} Qa7+ {[%emt 0:00:08]} 75. Qa6 {[%emt 0:00:20]} Qc7 {[%emt 0:00:45]} 76. Qa8 {[%emt 0:00:30]} Qd7 {[%emt 0:00:32]} 77. Qa6 {[%emt 0:02:08]} Qc7 {[%emt 0:00:09]} 78. Qb5 {[%emt 0:02:12]} Qa7+ {[%emt 0:00:06]} 79. Qa4 {[%emt 0:00:41]} Qb8 {[%emt 0:00:12]} 80. Qa5 {[%emt 0:01:01]} Qb7 {[%emt 0:00:08]} 81. Qa6 {[%emt 0:01:09]} Qc7 {[%emt 0:00:16]} 82. Nc6 {[%emt 0:01:05]} Bc8 {[%emt 0:00:45]} 83. Qb5 {[%emt 0:01:15]} Bd7 {[%emt 0:00:17]} 84. Qxd5 {[%emt 0:00:08]} Bxc6 {[%emt 0:00:21]} 85. Qxc4 {[%emt 0:00:01]} Qa5+ {[%emt 0:00:17]} 86. Kb2 {[%emt 0:00:55]} Bd5 {[%emt 0:00:04]} 87. Qd3 {[%emt 0:00:55]} Qa2+ {[%emt 0:00:17]} 88. Kc1 {[%emt 0:15:06]} Be4 {[%emt 0:00:35]} 0-1

[Event "76th Montenegro Championship 2024"]
[Site "Podgorica"]
[Date "2024.02.13"]
[Round "9.16"]
[White "Nikac, Predrag"]
[Black "Lekic, Pavle"]
[Result "1-0"]
[ECO "C55"]
[WhiteElo "2304"]
[BlackElo "1661"]
[Annotator "RC"]
[PlyCount "93"]
[EventDate "2024.02.06"]
[EventType "swiss"]
[EventCountry "MNE"]
[SourceTitle "playchess.com"]
[Source "ChessBase"]
[SourceQuality "1"]
[TimeControl "40/5400+30:1800+30"]

1. e4 {[%emt 0:17:44]} e5 {[%emt 0:00:08]} 2. Nf3 {[%emt 0:00:04]} Nc6 {[%emt 0:00:10]} 3. Bc4 {[%emt 0:00:29]} Nf6 {[%emt 0:00:26]} 4. d3 {[%emt 0:00:06]} Be7 {[%emt 0:00:39]} 5. O-O {[%emt 0:00:09]} O-O {[%emt 0:00:06]} 6. Re1 {[%emt 0:00:09]} d6 {[%emt 0:00:26]} 7. a4 {[%emt 0:00:06]} Bg4 {[%emt 0:13:06]} 8. h3 {[%emt 0:03:18]} Bh5 {[%emt 0:00:19]} 9. Nbd2 {[%emt 0:00:39]} d5 {[%emt 0:16:41]} 10. exd5 {[%emt 0:01:59]} Nxd5 {[%emt 0:00:17]} 11. g4 {[%emt 0:02:24]} Bg6 {[%emt 0:15:46]} 12. Nxe5 {[%emt 0:04:12]} Nxe5 {[%emt 0:13:38]} 13. Rxe5 {[%emt 0:00:13]} c6 {[%emt 0:00:31]} 14. Bxd5 {[%emt 0:03:02]} Bd6 {[%emt 0:01:39]} 15. Re1 {[%emt 0:04:47]} cxd5 {[%emt 0:01:36]} 16. Nf1 {[%emt 0:00:27]} f5 {[%emt 0:09:02]} 17. g5 {[%emt 0:06:12]} f4 {[%emt 0:04:21]} 18. Qg4 {[%emt 0:00:04]} Bf5 {[%emt 0:06:30]} 19. Qg2 {[%emt 0:03:35]} Rc8 {[%emt 0:04:08]} 20. c3 {[%emt 0:04:46]} Bb8 {[%emt 0:06:24]} 21. d4 {[%emt 0:02:19]} Qd7 {[%emt 0:00:58]} 22. h4 {[%emt 0:03:07]} Bh3 {[%emt 0:02:42]} 23. Qf3 {[%emt 0:00:37]} Bg4 {[%emt 0:00:17]} 24. Qh1 {[%emt 0:00:54]} Bh3 {[%emt 0:01:44]} 25. f3 {[%emt 0:00:35]} Rce8 {[%emt 0:01:26]} 26. Bd2 {[%emt 0:00:17]} h6 {[%emt 0:00:00]} 27. Rxe8 {[%emt 0:05:58]} Rxe8 {[%emt 0:00:00]} 28. Re1 {[%emt 0:01:31]} Rf8 {[%emt 0:00:33]} 29. Re2 {[%emt 0:05:10]} Qf5 {[%emt 0:00:50]} 30. Rh2 {[%emt 0:03:49]} Bxf1 {[%emt 0:00:23]} 31. Kxf1 {[%emt 0:00:07]} Qd3+ {[%emt 0:00:35]} 32. Re2 {[%emt 0:00:43]} hxg5 {[%emt 0:00:31]} 33. hxg5 {[%emt 0:00:30]} Qa6 {[%emt 0:00:35]} 34. Ke1 {[%emt 0:03:42]} Qg6 {[%emt 0:00:14]} 35. Qh3 {[%emt 0:00:45]} Rf5 {[%emt 0:00:37]} 36. Kd1 {[%emt 0:01:23]} Rxg5 {[%emt 0:00:31]} 37. Qc8+ {[%emt 0:01:02]} Kh7 {[%emt 0:00:14]} 38. Rh2+ {[%emt 0:00:34]} Rh5 {[%emt 0:00:16]} 39. Rxh5+ {[%emt 0:00:42]} Qxh5 {[%emt 0:00:05]} 40. Qxb8 {[%emt 0:00:00]} Qxf3+ {[%emt 0:00:00]} 41. Kc2 {[%emt 0:01:27]} Qe4+ {[%emt 0:01:40]} 42. Kb3 {[%emt 0:10:32]} f3 {[%emt 0:00:44]} 43. Qg3 {[%emt 0:01:55]} Qe2 {[%emt 0:01:08]} 44. Qe1 {[%emt 0:00:53]} g5 {[%emt 0:05:32]} 45. Qxe2 {[%emt 0:00:28]} fxe2 {[%emt 0:00:15]} 46. Kc2 {[%emt 0:00:36]} g4 {[%emt 0:00:18]} 47. Kd3 {[%emt 0:00:23]} 1-0

[Event "76th Montenegro Championship 2024"]
[Site "Podgorica"]
[Date "2024.02.13"]
[Round "9.17"]
[White "Popovic, Mateja"]
[Black "Djukanovic, Sreten"]
[Result "1-0"]
[ECO "A43"]
[WhiteElo "1880"]
[BlackElo "2068"]
[Annotator "NA RC"]
[PlyCount "63"]
[EventDate "2024.02.06"]
[EventType "swiss"]
[EventCountry "MNE"]
[SourceTitle "playchess.com"]
[Source "ChessBase"]
[SourceQuality "1"]
[TimeControl "40/5400+30:1800+30"]

1. d4 {[%emt 0:00:19]} c5 {[%emt 0:00:32]} 2. d5 {[%emt 0:00:06]} Nf6 {[%emt 0:00:13]} 3. Nc3 {[%emt 0:00:57]} g6 {[%emt 0:00:55]} 4. e4 {[%emt 0:00:07]} d6 {[%emt 0:00:05]} 5. Nf3 {[%emt 0:00:11]} Bg7 {[%emt 0:00:05]} 6. Bc4 {[%emt 0:00:07]} O-O {[%emt 0:01:19]} 7. O-O {[%emt 0:00:12]} Bg4 {[%emt 0:01:05]} 8. h3 {[%emt 0:01:04]} Bxf3 9. Qxf3 {[%emt 0:00:09]} Nbd7 {[%emt 0:01:44]} 10. Qd1 {[%emt 0:00:06]} Ne8 {[%emt 0:01:51]} 11. Re1 {[%emt 0:02:26]} Nc7 {[%emt 0:02:28]} 12. a4 {[%emt 0:00:32]} a6 {[%emt 0:01:42]} 13. a5 {[%emt 0:01:57]} b5 {[%emt 0:02:39]} 14. axb6 {[%emt 0:00:57]} Nxb6 {[%emt 0:00:06]} 15. Bf1 {[%emt 0:02:58]} f5 {[%emt 0:06:00]} 16. Bg5 {[%emt 0:19:56]} h6 {[%emt 0:08:02]} 17. Bd2 {[%emt 0:04:28]} f4 {[%emt 0:13:38]} 18. Qg4 {[%emt 0:03:22]} g5 {[%emt 0:02:26]} 19. h4 {[%emt 0:01:25]} Qd7 {[%emt 0:01:09]} 20. Qh5 {[%emt 0:02:55]} Qe8 {[%emt 0:02:24]} 21. Qg4 {[%emt 0:02:15]} Nd7 {[%emt 0:02:58]} 22. e5 {[%emt 0:12:00]} h5 {[%emt 0:04:14]} 23. Qxg5 {[%emt 0:03:18]} dxe5 {[%emt 0:05:18]} 24. Be2 {[%emt 0:04:11]} e6 {[%emt 0:21:13]} 25. Bxh5 {[%emt 0:06:50]} Qd8 {[%emt 0:00:21]} 26. Qxd8 {[%emt 0:01:25]} Rfxd8 {[%emt 0:01:20]} 27. Bf3 {[%emt 0:00:54]} Rab8 {[%emt 0:02:07]} 28. d6 {[%emt 0:03:12]} Ne8 {[%emt 0:02:36]} 29. Rxa6 {[%emt 0:01:53]} Rxb2 {[%emt 0:00:50]} 30. Ne4 {[%emt 0:01:21]} Nef6 {[%emt 0:08:57]} 31. Ba5 {[%emt 0:03:52]} Re8 {[%emt 0:00:56]} 32. Ra7 {[%emt 0:05:14]} 1-0

[Event "76th Montenegro Championship 2024"]
[Site "Podgorica"]
[Date "2024.02.13"]
[Round "9.18"]
[White "Milovic, Ilija"]
[Black "Kandic, Milojko"]
[Result "1-0"]
[ECO "D08"]
[WhiteElo "1823"]
[BlackElo "2046"]
[Annotator "NA RC"]
[PlyCount "66"]
[EventDate "2024.02.06"]
[EventType "swiss"]
[EventCountry "MNE"]
[SourceTitle "playchess.com"]
[Source "ChessBase"]
[SourceQuality "1"]
[TimeControl "40/5400+30:1800+30"]

1. d4 {[%emt 1:31:00]} d5 {[%emt 0:18:16]} 2. c4 {[%emt 0:00:00]} e5 {[%emt 0:00:05]} 3. dxe5 {[%emt 0:00:00]} d4 {[%emt 0:00:03]} 4. Nf3 {[%emt 0:00:00]} c5 {[%emt 0:00:05]} 5. e3 {[%emt 0:00:00]} Nc6 {[%emt 0:00:23]} 6. exd4 {[%emt 0:00:00]} cxd4 {[%emt 0:00:10]} 7. Bd3 {[%emt 0:00:00]} Bg4 {[%emt 0:04:08]} 8. O-O {[%emt 0:00:00]} Nge7 {[%emt 0:01:28]} 9. Bf4 {[%emt 0:00:00]} Ng6 {[%emt 0:05:40]} 10. Bg3 {[%emt 0:00:00]} h5 {[%emt 0:00:29]} 11. h3 {[%emt 0:00:00]} h4 {[%emt 0:06:35]} 12. Bh2 {[%emt 0:00:00]} Bh5 {[%emt 0:00:20]} 13. Re1 {[%emt 0:00:00]} Bb4 {[%emt 0:03:28]} 14. Re4 {[%emt 0:00:00]} O-O {[%emt 0:01:55]} 15. a3 {[%emt 0:00:00]} Be7 {[%emt 0:00:11]} 16. Nbd2 {[%emt 0:00:00]} a5 {[%emt 0:06:52]} 17. Qc2 {[%emt 0:00:00]} Rc8 {[%emt 0:07:47]} 18. e6 {[%emt 0:00:00]} fxe6 {[%emt 0:04:14]} 19. Rxe6 {[%emt 0:00:00]} Nf4 {[%emt 0:00:23]} 20. Bxf4 {[%emt 0:00:00]} Rxf4 {[%emt 0:00:06]} 21. Bg6 {[%emt 0:00:00]} d3 {[%emt 0:10:27]} 22. Qxd3 {[%emt 0:00:00]} Nd4 {[%emt 0:01:51]} 23. Qe3 {[%emt 0:00:00]} Bxg6 {[%emt 0:12:12]} 24. Rxg6 {[%emt 0:00:00]} Bf6 {[%emt 0:01:58]} 25. Re1 {[%emt 0:00:00]} Nxf3+ {[%emt 0:01:04]} 26. Nxf3 {[%emt 0:00:00]} Rfxc4 {[%emt 0:00:36]} 27. Qe6+ {[%emt 0:00:00]} Kh7 {[%emt 0:02:47]} 28. Rg4 {[%emt 0:00:00]} Rc1 {[%emt 0:05:02]} 29. Rge4 {[%emt 0:01:57]} Bxb2 {[%emt 0:02:03]} 30. Qf5+ {[%emt 0:01:48]} Kg8 {[%emt 0:01:10]} 31. Ng5 {[%emt 0:01:29]} Rxe1+ {[%emt 0:03:07]} 32. Rxe1 {[%emt 0:00:02]} Qxg5 {[%emt 0:00:50]} 33. Qxg5 {[%emt 0:00:11]} Bf6 {[%emt 0:00:21]} 1-0

[Event "76th Montenegro Championship 2024"]
[Site "Podgorica"]
[Date "2024.02.14"]
[Round "10.1"]
[White "Kadric, Denis"]
[Black "Djukic, Nikola"]
[Result "1/2-1/2"]
[ECO "B36"]
[WhiteElo "2584"]
[BlackElo "2529"]
[Annotator "TA"]
[PlyCount "85"]
[EventDate "2024.02.06"]
[EventType "swiss"]
[EventCountry "MNE"]
[SourceTitle "playchess.com"]
[Source "ChessBase"]
[SourceQuality "1"]
[TimeControl "40/5400+30:1800+30"]

{[%evp 27,85,16,13,11,13,16,16,3,15,12,7,0,19,26,18,0,15,0,0,28,41,8,36,0,19,17,27,20,17,0,0,-47,17,11,23,22,30,35,31,22,29,29,44,57,78,77,87,75,81,66,105,53,38,32,27,15,11,0,40,0]} 1. e4 {[%emt 0:00:02]} c5 {[%emt 0:11:01]} 2. Nf3 {[%emt 0:00:07]} Nc6 {[%emt 0:00:05]} 3. d4 {[%emt 0:00:08]} cxd4 {[%emt 0:00:06]} 4. Nxd4 {[%emt 0:00:02]} g6 {[%emt 0:00:06]} 5. c4 {[%emt 0:00:10]} Nf6 {[%emt 0:00:05]} 6. Nc3 {[%emt 0:00:02]} Nxd4 {[%emt 0:00:06]} 7. Qxd4 {[%emt 0:00:02]} d6 {[%emt 0:00:06]} 8. Be2 {[%emt 0:00:21]} Bg7 {[%emt 0:00:06]} 9. O-O {[%emt 0:00:04]} O-O {[%emt 0:00:06]} 10. Qd3 {[%emt 0:00:01] B36: Sicilian: Maroczy Bind: Gurgenidze System.} a5 {[%emt 0:00:08]} 11. Be3 {[%emt 0:00:57]} a4 {[%emt 0:00:05]} 12. Bd4 {[%emt 0:00:31]} Bd7 {[%emt 0:00:07]} 13. f4 {[%emt 0:04:11]} Bc6 {[%emt 0:01:06]} 14. b4 {[%emt 0:04:21]} axb3 {[%emt 0:00:23]} 15. axb3 {[%emt 0:00:00]} Rxa1 {[%emt 0:11:41]} 16. Rxa1 {[%emt 0:00:05]} Nd7 {[%emt 0:06:55]} 17. b4 $146 {[%emt 0:07:03]} ({Predecessor:} 17. Bxg7 Kxg7 18. Qe3 Qb6 19. Qxb6 Nxb6 20. Kf2 Ra8 21. Rxa8 Nxa8 22. e5 dxe5 23. fxe5 {1-0 Goganov,A (2526)-Zarubitski,V (2459) Chigorin Memorial 29th 2022 (9)}) 17... e5 {[%emt 0:23:32]} 18. fxe5 {[%emt 0:00:09]} Nxe5 {[%emt 0:00:06]} 19. Qd2 {[%emt 0:02:09]} Qh4 {[%emt 0:02:44]} 20. Bf2 {[%emt 0:03:15]} Qf6 {[%emt 0:06:55]} 21. Ra3 {[%emt 0:01:52]} Qe6 {[%emt 0:02:52]} 22. b5 {[%emt 0:19:30]} Bd7 {[%emt 0:00:06]} (22... Nxc4 $2 23. Bxc4 Qxc4 24. bxc6 $16) 23. Nd5 {[%emt 0:00:08]} Kh8 {[%emt 0:01:34]} 24. Qg5 {[%emt 0:13:52]} f6 {[%emt 0:04:26]} 25. Qh4 {[%emt 0:00:38]} g5 {[%emt 0:00:41]} 26. Qg3 {[%emt 0:01:16]} f5 {[%emt 0:00:48]} 27. Qxg5 {[%emt 0:09:51]} fxe4 {[%emt 0:00:07]} 28. Be3 {[%emt 0:01:07]} Qf7 {[%emt 0:09:06]} (28... Bxb5 $2 29. Nf4 (29. Nc7 Qf7 $18) 29... Qh6 30. Qxh6 Bxh6 31. Ng6+ hxg6 32. Bxh6 (32. cxb5 $2 Bxe3+ 33. Rxe3 d5 $19) 32... Bxc4 33. Bxf8 $18) 29. Qe7 {[%emt 0:05:00]} (29. Qf4 $1 $11 {is more appropriate.}) 29... Qf5 {[%emt 0:14:04]} (29... Qxe7 $15 30. Nxe7 Bg4) 30. Nf4 {[%emt 0:09:31]} (30. Ra7 $2 Ng4 $19) 30... Bh6 {[%emt 0:02:36]} 31. g3 {[%emt 0:00:19]} Re8 {[%emt 0:02:35]} 32. Qh4 $1 {[%emt 0:01:50]} (32. Qxd6 $2 Bf8 33. Qd5 Bxa3 $19) 32... Bg7 {[%emt 0:00:05]} 33. Qh5 {[%emt 0:01:52]} Nf3+ {[%emt 0:01:32]} 34. Kf2 {[%emt 0:03:14]} Qxh5 35. Nxh5 {[%emt 0:00:01]} Nxh2 {[%emt 0:01:01]} 36. Nxg7 {[%emt 0:01:01]} Kxg7 {[%emt 0:00:05]} 37. Ra7 {[%emt 0:02:42]} Bc8 {[%emt 0:00:14]} 38. Bf4 {[%emt 0:00:53]} Nf3 $1 {[%emt 0:01:04]} 39. Ke3 {[%emt 0:08:36]} (39. Bxd6 $16 {[%cal Oc4c5] c5! would now be deadly.} Nd4 40. c5 e3+ 41. Ke1) 39... Ne5 $14 {[%emt 0:00:05]} 40. Ra8 {[%emt 0:00:00]} (40. Kxe4 Nc6+ (40... Nxc4+ 41. Kf3 $11) 41. Kd5 Nxa7 $19) 40... Kf6 {[%emt 0:00:00]} 41. Kd4 {[%emt 0:12:48]} (41. Kxe4 $2 {is the wrong capture.} Bf5+ (41... Nxc4+ 42. Kd4 $11) 42. Kd5 Rxa8 $19) 41... Nf3+ {[%emt 0:04:29]} 42. Ke3 {[%emt 0:00:16]} Ne5 {[%emt 0:00:06]} 43. Kd4 {[%emt 0:22:03]} (43. Kxe4 $2 {too greedy.} Bf5+ (43... Nxc4+ 44. Kd4 $11) 44. Kd5 Rxa8 $19) (43. g4 $5) 1/2-1/2